[Event "FIDE WCCC Open-08 2024"]
[Site "Montesilvano"]
[Date "2024.11.25"]
[Round "10.7"]
[White "Demchenko, Timofei"]
[Black "Adilbek, Adinur"]
[Result "1/2-1/2"]
[Annotator "NA RC"]
[ECO "B13"]
[WhiteElo "1969"]
[BlackElo "1651"]
[PlyCount "70"]
[EventDate "2024.11.18"]
[EventType "swiss"]
[EventCountry "ITA"]
[SourceTitle "playchess.com"]
[Source "ChessBase"]
[SourceQuality "1"]
[TimeControl "5400+30"]

1. e4 {[%emt 0:00:02]} c6 {[%emt 0:00:09]} 2. d4 {[%emt 0:00:04]} d5 {[%emt 0:00:06]} 3. exd5 {[%emt 0:00:06]} cxd5 {[%emt 0:00:05]} 4. Bd3 {[%emt 0:00:07]} Nc6 {[%emt 0:00:07]} 5. c3 {[%emt 0:00:06]} Nf6 {[%emt 0:00:10]} 6. h3 {[%emt 0:00:05]} e6 {[%emt 0:00:22]} 7. Nf3 {[%emt 0:00:15]} Bd6 {[%emt 0:00:20]} 8. Be3 {[%emt 0:01:01]} Bd7 {[%emt 0:00:35]} 9. Nbd2 {[%emt 0:00:29]} Qc7 {[%emt 0:00:19]} 10. Qc2 {[%emt 0:01:05]} Rc8 {[%emt 0:00:36]} 11. a3 {[%emt 0:00:36]} a6 {[%emt 0:00:35]} 12. O-O-O {[%emt 0:04:31]} b5 {[%emt 0:02:37]} 13. Kb1 {[%emt 0:04:06]} Na5 {[%emt 0:09:15]} 14. g4 {[%emt 0:03:23]} Nc4 {[%emt 0:05:26]} 15. Rhe1 {[%emt 0:05:52]} Qb6 {[%emt 0:08:47]} 16. Ka2 {[%emt 0:09:32]} Qa5 {[%emt 0:08:56]} 17. Nb3 {[%emt 0:27:02]} Qa4 {[%emt 0:16:08]} 18. Nbd2 {[%emt 0:07:12]} Qa5 {[%emt 0:01:08]} 19. Nb3 {[%emt 0:00:35]} Qa4 {[%emt 0:00:23]} 20. Nc5 {[%emt 0:15:24]} Qxc2 {[%emt 0:08:28]} 21. Bxc2 {[%emt 0:00:01]} Bxc5 {[%emt 0:04:36]} 22. dxc5 {[%emt 0:00:10]} Nxe3 {[%emt 0:01:04]} 23. Rxe3 {[%emt 0:00:02]} Rxc5 {[%emt 0:00:44]} 24. g5 {[%emt 0:00:06]} Nh5 {[%emt 0:04:06]} 25. b4 {[%emt 0:00:26]} Rc7 {[%emt 0:04:39]} 26. Rxd5 {[%emt 0:02:17]} O-O {[%emt 0:00:45]} 27. Rd6 {[%emt 0:02:23]} Nf4 {[%emt 0:05:36]} 28. Ne5 {[%emt 0:02:42]} Bc8 {[%emt 0:00:56]} 29. Rf3 {[%emt 0:01:47]} Nd5 {[%emt 0:02:19]} 30. Kb3 {[%emt 0:00:18]} Bb7 {[%emt 0:01:34]} 31. Nd7 {[%emt 0:02:35]} Rfc8 {[%emt 0:01:53]} 32. Nc5 {[%emt 0:02:24]} a5 {[%emt 0:09:54]} 33. Rd3 {[%emt 0:01:38]} a4+ {[%emt 0:01:07]} 34. Kb2 {[%emt 0:00:10]} Kf8 {[%emt 0:00:53]} 35. Rd7 {[%emt 0:00:38]} Nb6 {[%emt 0:01:37]} 1/2-1/2

[Event "FIDE WCCC Open-08 2024"]
[Site "Montesilvano"]
[Date "2024.11.25"]
[Round "10.8"]
[White "Nurshin, Nurali"]
[Black "Hu, Junyan"]
[Result "0-1"]
[Annotator "RC"]
[ECO "B45"]
[WhiteElo "1612"]
[BlackElo "1924"]
[PlyCount "146"]
[EventDate "2024.11.18"]
[EventType "swiss"]
[EventCountry "ITA"]
[SourceTitle "playchess.com"]
[Source "ChessBase"]
[SourceQuality "1"]
[TimeControl "5400+30"]

1. e4 {[%emt 0:00:16]} c5 {[%emt 0:00:02]} 2. Nf3 {[%emt 0:00:18]} e6 {[%emt 0:00:06]} 3. d4 {[%emt 0:00:08]} cxd4 {[%emt 0:00:06]} 4. Nxd4 {[%emt 0:00:10]} Nf6 {[%emt 0:00:06]} 5. Nc3 {[%emt 0:00:29]} Nc6 {[%emt 0:00:31]} 6. Be2 {[%emt 0:00:25]} Bb4 {[%emt 0:01:01]} 7. O-O {[%emt 0:00:35]} Bxc3 {[%emt 0:00:44]} 8. bxc3 {[%emt 0:00:19]} Nxe4 {[%emt 0:03:06]} 9. Nxc6 {[%emt 0:01:12]} bxc6 {[%emt 0:00:58]} 10. Qd4 {[%emt 0:00:29]} d5 {[%emt 0:02:00]} 11. Ba3 {[%emt 0:02:06]} Qf6 {[%emt 0:01:04]} 12. Qb4 {[%emt 0:03:12]} a5 {[%emt 0:06:50]} 13. Qb6 {[%emt 0:01:33]} Bd7 {[%emt 0:00:51]} 14. c4 {[%emt 0:04:46]} Qc3 {[%emt 0:02:19]} 15. Bb2 {[%emt 0:17:10]} Qb4 {[%emt 0:04:20]} 16. Qd4 {[%emt 0:01:32]} f6 {[%emt 0:01:28]} 17. Rab1 {[%emt 0:39:00]} c5 {[%emt 0:03:08]} 18. Qe3 {[%emt 0:02:49]} Qd2 {[%emt 0:04:33]} 19. Rbd1 {[%emt 0:02:14]} Qxe3 {[%emt 0:01:23]} 20. fxe3 {[%emt 0:00:35]} Bc6 {[%emt 0:05:46]} 21. cxd5 {[%emt 0:01:36]} exd5 {[%emt 0:01:14]} 22. Bf3 {[%emt 0:00:21]} O-O-O {[%emt 0:03:39]} 23. c4 {[%emt 0:02:55]} dxc4 {[%emt 0:01:35]} 24. Rc1 {[%emt 0:00:42]} Kb7 {[%emt 0:03:30]} 25. Bc3 {[%emt 0:06:09]} Nxc3 {[%emt 0:00:50]} 26. Rxc3 {[%emt 0:00:25]} Bxf3 {[%emt 0:00:07]} 27. gxf3 {[%emt 0:00:18]} Kc6 {[%emt 0:01:53]} 28. Rxc4 {[%emt 0:00:11]} Kb5 {[%emt 0:00:32]} 29. Rg4 {[%emt 0:00:27]} g5 {[%emt 0:02:29]} 30. a4+ {[%emt 0:01:03]} Kc6 {[%emt 0:00:12]} 31. f4 {[%emt 0:00:18]} h5 {[%emt 0:00:36]} 32. Rg2 {[%emt 0:00:04]} g4 {[%emt 0:00:34]} 33. Rc2 {[%emt 0:00:27]} Rhe8 {[%emt 0:49:27]} 34. Rfc1 {[%emt 0:00:26]} Rd5 {[%emt 0:00:00]} 35. Kf2 {[%emt 0:00:55]} Re4 {[%emt 0:00:00]} 36. Ra2 {[%emt 0:03:17]} h4 {[%emt 0:00:00]} 37. Rc3 {[%emt 0:00:48]} f5 {[%emt 0:00:00]} 38. h3 {[%emt 0:00:57]} g3+ {[%emt 0:00:00]} 39. Kf3 {[%emt 0:00:15]} Rd1 {[%emt 0:00:00]} 40. Rac2 {[%emt 0:00:51]} Rf1+ {[%emt 0:00:00]} 41. Kg2 {[%emt 0:00:13]} Rf2+ {[%emt 0:00:00]} 42. Rxf2 {[%emt 0:00:10]} gxf2 {[%emt 0:00:00]} 43. Ra3 {[%emt 0:00:06]} c4 {[%emt 0:00:00]} 44. Kxf2 {[%emt 0:00:04]} Kc5 {[%emt 0:00:00]} 45. Ke2 {[%emt 0:00:09]} Kb4 {[%emt 0:00:00]} 46. Ra1 {[%emt 0:00:09]} Re8 {[%emt 0:00:00]} 47. Rb1+ {[%emt 0:02:27]} Kxa4 {[%emt 0:00:00]} 48. Kd2 {[%emt 0:00:16]} Re7 {[%emt 0:00:00]} 49. Ra1+ {[%emt 0:04:27]} Kb5 {[%emt 0:00:00]} 50. Rb1+ {[%emt 0:01:09]} Kc5 {[%emt 0:00:00]} 51. Ra1 {[%emt 0:00:58]} Ra7 {[%emt 0:00:00]} 52. Kc3 {[%emt 0:01:14]} a4 {[%emt 0:00:00]} 53. e4 {[%emt 0:01:00]} fxe4 {[%emt 0:00:00]} 54. f5 {[%emt 0:00:04]} Ra6 {[%emt 0:00:00]} 55. Rf1 {[%emt 0:01:34]} Rf6 {[%emt 0:00:00]} 56. Rf4 {[%emt 0:01:06]} Kd5 {[%emt 0:00:00]} 57. Rxh4 {[%emt 0:00:38]} Rxf5 {[%emt 0:00:00]} 58. Rh8 {[%emt 0:00:04]} Rf3+ {[%emt 0:00:00]} 59. Kb4 {[%emt 0:00:07]} e3 {[%emt 0:00:00]} 60. Re8 {[%emt 0:00:34]} Kd4 {[%emt 0:00:00]} 61. Rd8+ {[%emt 0:00:17]} Ke4 {[%emt 0:00:00]} 62. Kxc4 {[%emt 0:03:01]} a3 {[%emt 0:00:00]} 63. Re8+ {[%emt 0:00:00]} Kf4 {[%emt 0:00:00]} 64. Kd3 {[%emt 0:00:00]} a2 {[%emt 0:00:00]} 65. Ra8 {[%emt 0:00:00]} Rf2 {[%emt 0:00:00]} 66. h4 {[%emt 0:00:00]} e2 {[%emt 0:00:00]} 67. Kd2 {[%emt 0:00:13]} Rf1 {[%emt 0:00:00]} 68. Kxe2 {[%emt 0:00:38]} a1=Q {[%emt 0:00:00]} 69. Rf8+ {[%emt 0:00:06]} Kg3 {[%emt 0:00:00]} 70. Rxf1 {[%emt 0:00:07]} Qa6+ {[%emt 0:00:00]} 71. Ke1 {[%emt 0:00:08]} Kg2 {[%emt 0:00:00]} 72. Rf2+ {[%emt 0:00:17]} Kg1 {[%emt 0:00:00]} 73. Rd2 {[%emt 0:00:14]} Qf1# {[%emt 0:00:00]} 0-1

[Event "FIDE WCCC Open-08 2024"]
[Site "Montesilvano"]
[Date "2024.11.25"]
[Round "10.9"]
[White "Huzela, Lukyan"]
[Black "Xu, Zhihan (Samuel)"]
[Result "0-1"]
[Annotator "NA RC"]
[ECO "C56"]
[WhiteElo "1651"]
[BlackElo "1881"]
[PlyCount "76"]
[EventDate "2024.11.18"]
[EventType "swiss"]
[EventCountry "ITA"]
[SourceTitle "playchess.com"]
[Source "ChessBase"]
[SourceQuality "1"]
[TimeControl "5400+30"]

1. e4 {[%emt 0:00:01]} e5 {[%emt 0:00:02]} 2. d4 {[%emt 0:00:08]} exd4 {[%emt 0:00:03]} 3. Nf3 {[%emt 0:00:06]} Nc6 {[%emt 0:00:03]} 4. Bc4 {[%emt 0:00:18]} Nf6 {[%emt 0:00:04]} 5. O-O {[%emt 0:00:38]} Nxe4 {[%emt 0:00:04]} 6. Re1 {[%emt 0:00:05]} d5 {[%emt 0:00:05]} 7. Bxd5 {[%emt 0:00:03]} Qxd5 {[%emt 0:00:05]} 8. Nc3 {[%emt 0:00:05]} Qd7 {[%emt 0:00:59]} 9. Nxe4 {[%emt 0:01:03]} Be7 {[%emt 0:00:05]} 10. Bg5 {[%emt 0:00:11]} O-O {[%emt 0:00:06]} 11. Bxe7 {[%emt 0:01:43]} Qxe7 {[%emt 0:00:05]} 12. Nxd4 {[%emt 0:00:26]} Bd7 {[%emt 0:00:04]} 13. Nc3 {[%emt 0:03:19]} Qb4 {[%emt 0:00:25]} 14. Ndb5 {[%emt 0:03:27]} Rad8 {[%emt 0:01:00]} 15. a3 {[%emt 0:09:45]} Qa5 {[%emt 0:06:50]} 16. Nd4 {[%emt 0:07:08]} Qb6 {[%emt 0:03:50]} 17. Nxc6 {[%emt 0:05:14]} Bxc6 {[%emt 0:00:10]} 18. Qc1 {[%emt 0:08:55]} Rd6 {[%emt 0:08:30]} 19. b4 {[%emt 0:05:52]} Rg6 {[%emt 0:01:30]} 20. g3 {[%emt 0:02:01]} Qd4 {[%emt 0:02:40]} 21. Re3 {[%emt 0:09:56]} Qh4 {[%emt 0:00:50]} 22. b5 {[%emt 0:02:41]} Qxh2+ {[%emt 0:00:30]} 23. Kf1 {[%emt 0:04:38]} Rf6 {[%emt 0:01:40]} 24. Qe1 {[%emt 0:00:49]} Bf3 {[%emt 0:00:28]} 25. Rxf3 {[%emt 0:03:25]} Qh1+ {[%emt 0:00:26]} 26. Ke2 {[%emt 0:00:18]} Qxf3+ {[%emt 0:00:10]} 27. Kf1 {[%emt 0:00:19]} Qh1+ {[%emt 0:00:09]} 28. Ke2 {[%emt 0:00:06]} Re8+ {[%emt 0:00:05]} 29. Kd2 {[%emt 0:00:06]} Rxe1 {[%emt 0:00:05]} 30. Rxe1 {[%emt 0:00:06]} Rd6+ {[%emt 0:00:05]} 31. Kc1 {[%emt 0:01:05]} Qxe1+ {[%emt 0:00:06]} 32. Kb2 {[%emt 0:00:06]} Qxf2 {[%emt 0:00:21]} 33. Ne4 {[%emt 0:00:08]} Qd4+ {[%emt 0:00:09]} 34. Nc3 {[%emt 0:00:08]} Rd5 {[%emt 0:00:11]} 35. a4 {[%emt 0:00:07]} Qb4+ {[%emt 0:00:06]} 36. Ka2 {[%emt 0:00:08]} Qxc3 {[%emt 0:00:06]} 37. Kb1 {[%emt 0:00:06]} Rd1+ {[%emt 0:00:05]} 38. Ka2 {[%emt 0:00:11]} Ra1# {[%emt 0:00:01]} 0-1

[Event "FIDE WCCC Open-08 2024"]
[Site "Montesilvano"]
[Date "2024.11.25"]
[Round "10.10"]
[White "Jevglevski, Lev"]
[Black "Badescu, Matei-Andrei"]
[Result "0-1"]
[Annotator "NA RC"]
[ECO "B95"]
[WhiteElo "1602"]
[BlackElo "1829"]
[PlyCount "51"]
[EventDate "2024.11.18"]
[EventType "swiss"]
[EventCountry "ITA"]
[SourceTitle "playchess.com"]
[Source "ChessBase"]
[SourceQuality "1"]
[TimeControl "5400+30"]

1. e4 {[%emt 0:00:03]} c5 {[%emt 0:00:06]} 2. Nf3 {[%emt 0:00:06]} d6 {[%emt 0:00:10]} 3. d4 {[%emt 0:00:05]} cxd4 {[%emt 0:00:09]} 4. Nxd4 {[%emt 0:00:01]} Nf6 {[%emt 0:00:24]} 5. Nc3 {[%emt 0:00:18]} a6 {[%emt 0:00:07]} 6. Bg5 {[%emt 0:00:11]} Nbd7 {[%emt 0:00:47]} 7. Qd3 {[%emt 0:01:07]} e6 {[%emt 0:01:43]} 8. O-O-O {[%emt 0:01:03]} Be7 {[%emt 0:00:43]} 9. f4 {[%emt 0:02:25]} Qc7 {[%emt 0:01:12]} 10. g4 {[%emt 0:02:17]} h6 {[%emt 0:01:25]} 11. Bxf6 {[%emt 1:28:24]} Bxf6 {[%emt 0:02:09]} 12. h4 {[%emt 0:00:00]} Nc5 {[%emt 0:01:14]} 13. Qc4 {[%emt 0:00:00]} Qb6 {[%emt 0:11:55]} 14. f5 {[%emt 0:00:00]} Be5 {[%emt 0:21:50]} 15. Be2 {[%emt 0:00:00]} Bd7 {[%emt 0:02:04]} 16. Rhf1 {[%emt 0:00:00]} Rc8 {[%emt 0:00:45]} 17. fxe6 {[%emt 0:00:00]} fxe6 {[%emt 0:00:37]} 18. Nf3 {[%emt 0:00:00]} Na4 {[%emt 0:01:51]} 19. Nxa4 {[%emt 0:00:00]} Qe3+ {[%emt 0:00:44]} 20. Kb1 {[%emt 0:00:00]} Rxc4 {[%emt 0:00:15]} 21. Bxc4 {[%emt 0:00:00]} Bxa4 {[%emt 0:00:30]} 22. Nxe5 {[%emt 0:00:00]} dxe5 {[%emt 0:00:27]} 23. Bxe6 {[%emt 0:00:00]} Rf8 {[%emt 0:00:57]} 24. Rfe1 {[%emt 0:00:00]} Qb6 {[%emt 0:01:04]} 25. Bf5 {[%emt 0:00:00]} g6 {[%emt 0:00:24]} 26. Bc8 {[%emt 0:00:00]} 0-1

[Event "FIDE WCCC Open-08 2024"]
[Site "Montesilvano"]
[Date "2024.11.25"]
[Round "10.11"]
[White "Mani, Sarbartho"]
[Black "Charyyev Charyhekim"]
[Result "1-0"]
[Annotator "NA RC"]
[ECO "B23"]
[WhiteElo "1824"]
[BlackElo "1589"]
[PlyCount "53"]
[EventDate "2024.11.18"]
[EventType "swiss"]
[EventCountry "ITA"]
[SourceTitle "playchess.com"]
[Source "ChessBase"]
[SourceQuality "1"]
[TimeControl "5400+30"]

1. e4 {[%emt 0:00:01]} c5 {[%emt 0:00:55]} 2. Nc3 {[%emt 0:00:10]} d6 {[%emt 0:00:19]} 3. f4 {[%emt 0:00:11]} g6 {[%emt 0:00:09]} 4. Nf3 {[%emt 0:00:14]} Bg7 {[%emt 0:00:33]} 5. Bc4 {[%emt 0:00:13]} Nc6 {[%emt 0:00:23]} 6. d3 {[%emt 0:00:09]} e6 {[%emt 0:00:07]} 7. O-O {[%emt 0:00:12]} Nge7 {[%emt 0:00:30]} 8. Qe1 {[%emt 0:00:09]} O-O {[%emt 0:00:12]} 9. Bb3 {[%emt 0:00:10]} Na5 {[%emt 0:00:25]} 10. Bd2 {[%emt 0:00:40]} Nxb3 {[%emt 0:00:07]} 11. axb3 {[%emt 0:00:08]} b6 {[%emt 0:00:17]} 12. Rb1 {[%emt 0:00:21]} Bb7 {[%emt 0:03:00]} 13. Ne2 {[%emt 0:00:09]} Nc6 {[%emt 0:03:20]} 14. Bc3 {[%emt 0:00:29]} d5 {[%emt 0:15:22]} 15. Bxg7 {[%emt 0:00:12]} Kxg7 {[%emt 0:00:53]} 16. Qc3+ {[%emt 0:00:26]} d4 {[%emt 0:02:48]} 17. Qe1 {[%emt 0:00:09]} Bc8 {[%emt 0:12:56]} 18. Ng3 {[%emt 0:01:59]} Re8 {[%emt 0:07:01]} 19. Qf2 {[%emt 0:00:56]} f5 {[%emt 0:00:17]} 20. Rbe1 {[%emt 0:00:07]} Qc7 {[%emt 0:02:53]} 21. exf5 {[%emt 0:00:22]} Qxf4 {[%emt 0:06:55]} 22. Re4 {[%emt 0:00:36]} Qc7 {[%emt 0:12:25]} 23. f6+ {[%emt 0:00:26]} Kh8 {[%emt 0:03:53]} 24. Ng5 {[%emt 0:00:18]} Rf8 {[%emt 0:07:00]} 25. Rh4 {[%emt 0:00:17]} Rf7 {[%emt 0:00:15]} 26. Nxf7+ {[%emt 0:00:15]} Qxf7 {[%emt 0:00:08]} 27. Ne4 {[%emt 0:00:07]} 1-0

[Event "FIDE WCCC Open-08 2024"]
[Site "Montesilvano"]
[Date "2024.11.25"]
[Round "10.12"]
[White "Pera, Mikolaj"]
[Black "Morozov, Arkhip"]
[Result "1/2-1/2"]
[Annotator "NA RC"]
[ECO "B33"]
[WhiteElo "1446"]
[BlackElo "1687"]
[PlyCount "139"]
[EventDate "2024.11.18"]
[EventType "swiss"]
[EventCountry "ITA"]
[SourceTitle "playchess.com"]
[Source "ChessBase"]
[SourceQuality "1"]
[TimeControl "5400+30"]

1. e4 {[%emt 0:00:03]} c5 {[%emt 0:00:12]} 2. Nf3 {[%emt 0:00:10]} Nc6 {[%emt 0:00:12]} 3. d4 {[%emt 0:00:22]} cxd4 {[%emt 0:00:05]} 4. Nxd4 {[%emt 0:00:12]} Nf6 {[%emt 0:00:19]} 5. Nc3 {[%emt 0:00:23]} e6 {[%emt 0:00:20]} 6. Ndb5 {[%emt 0:00:39]} d6 {[%emt 0:00:09]} 7. Bf4 {[%emt 0:00:16]} e5 {[%emt 0:00:09]} 8. Bg5 {[%emt 0:01:03]} a6 {[%emt 0:00:17]} 9. Na3 {[%emt 0:00:27]} b5 {[%emt 0:00:13]} 10. Nd5 {[%emt 0:00:31]} Be7 {[%emt 0:00:12]} 11. Bxf6 {[%emt 0:02:48]} Bxf6 {[%emt 0:00:07]} 12. c3 {[%emt 0:05:09]} Bg5 {[%emt 0:00:49]} 13. Nc2 {[%emt 0:04:24]} O-O {[%emt 0:03:43]} 14. Bd3 {[%emt 0:02:33]} Kh8 {[%emt 0:03:03]} 15. O-O {[%emt 0:01:13]} Ne7 {[%emt 0:04:50]} 16. Nce3 {[%emt 0:00:39]} Nxd5 {[%emt 0:04:30]} 17. Nxd5 {[%emt 0:00:12]} Rb8 {[%emt 0:02:14]} 18. f4 {[%emt 0:09:40]} exf4 {[%emt 0:07:21]} 19. Nxf4 {[%emt 0:00:55]} Bb7 {[%emt 0:05:20]} 20. Qh5 {[%emt 0:03:39]} Bh6 {[%emt 0:02:21]} 21. Rad1 {[%emt 0:06:56]} Qe8 {[%emt 0:04:29]} 22. Rde1 {[%emt 0:09:44]} Rd8 {[%emt 0:08:12]} 23. Kh1 {[%emt 0:06:58]} Qe5 {[%emt 0:07:06]} 24. Qg4 {[%emt 0:03:24]} Rde8 {[%emt 0:04:03]} 25. Re2 {[%emt 0:01:26]} Re7 {[%emt 0:03:00]} 26. Nd5 {[%emt 0:02:00]} Bc8 {[%emt 0:01:38]} 27. Qf3 {[%emt 0:02:09]} Ree8 {[%emt 0:01:17]} 28. Nc7 {[%emt 0:07:45]} Re7 {[%emt 0:01:42]} 29. Nd5 {[%emt 0:00:23]} Re6 {[%emt 0:03:43]} 30. Qg3 {[%emt 0:06:32]} Qxg3 {[%emt 0:01:07]} 31. hxg3 {[%emt 0:00:06]} f6 {[%emt 0:00:45]} 32. Nb6 {[%emt 0:01:09]} Bb7 {[%emt 0:01:25]} 33. Rfe1 {[%emt 0:02:46]} Bc6 {[%emt 0:01:49]} 34. Nd5 {[%emt 0:20:54]} Re5 {[%emt 0:01:01]} 35. Nc7 {[%emt 0:00:00]} Bb7 {[%emt 0:01:02]} 36. Bc2 {[%emt 0:00:00]} Rf7 {[%emt 0:01:32]} 37. Nd5 {[%emt 0:00:00]} g6 {[%emt 0:01:56]} 38. Nb4 {[%emt 0:00:00]} Rfe7 {[%emt 0:02:53]} 39. Bd3 {[%emt 0:00:00]} Kg7 {[%emt 0:07:02]} 40. Nc2 {[%emt 0:00:00]} Re8 {[%emt 0:01:54]} 41. Nd4 {[%emt 0:00:00]} Ba8 {[%emt 0:02:13]} 42. Kg1 {[%emt 0:00:00]} Kf7 {[%emt 0:02:14]} 43. Nf3 {[%emt 0:00:00]} R5e7 {[%emt 0:00:14]} 44. Nd4 {[%emt 0:00:00]} Bb7 {[%emt 0:01:32]} 45. Nf3 {[%emt 0:00:00]} Bc8 {[%emt 0:00:45]} 46. Kf2 {[%emt 0:00:00]} Bg7 {[%emt 0:00:43]} 47. Nd4 {[%emt 0:00:00]} Bb7 {[%emt 0:00:36]} 48. Nf3 {[%emt 0:00:00]} Kg8 {[%emt 0:01:10]} 49. Kg1 {[%emt 0:00:00]} Kf7 {[%emt 0:01:52]} 50. Nd4 {[%emt 0:00:00]} Bh6 {[%emt 0:00:25]} 51. Nf3 {[%emt 0:00:00]} Ba8 {[%emt 0:00:41]} 52. Kf2 {[%emt 0:00:00]} Bg7 {[%emt 0:00:39]} 53. Kg1 {[%emt 0:00:00]} d5 {[%emt 0:00:54]} 54. exd5 {[%emt 0:00:00]} Rxe2 {[%emt 0:00:19]} 55. Rxe2 {[%emt 0:00:00]} Rxe2 {[%emt 0:00:17]} 56. Bxe2 {[%emt 0:00:00]} Bxd5 {[%emt 0:00:05]} 57. b3 {[%emt 0:00:00]} f5 {[%emt 0:00:18]} 58. c4 {[%emt 0:00:00]} bxc4 {[%emt 0:00:10]} 59. bxc4 {[%emt 0:00:00]} Bxf3 {[%emt 0:01:00]} 60. gxf3 {[%emt 0:00:00]} Bd4+ {[%emt 0:00:22]} 61. Kg2 {[%emt 0:00:05]} Bc5 {[%emt 0:00:20]} 62. Kh3 {[%emt 0:01:00]} Ke6 {[%emt 0:00:12]} 63. f4 {[%emt 0:00:25]} h5 {[%emt 0:01:03]} 64. Kg2 {[%emt 0:00:15]} Kd6 {[%emt 0:00:13]} 65. Bd1 {[%emt 0:00:22]} Bd4 {[%emt 0:00:16]} 66. Ba4 {[%emt 0:00:44]} Ke6 {[%emt 0:00:09]} 67. Bc6 {[%emt 0:00:28]} Kf6 {[%emt 0:00:48]} 68. Kf3 {[%emt 0:00:34]} Bc5 {[%emt 0:00:17]} 69. Bb7 {[%emt 0:00:31]} a5 {[%emt 0:00:06]} 70. a4 {[%emt 0:00:09]} 1/2-1/2

[Event "FIDE WCCC Open-08 2024"]
[Site "Montesilvano"]
[Date "2024.11.25"]
[Round "10.13"]
[White "Zhu, Daniel"]
[Black "Kavish Palaniappan K"]
[Result "0-1"]
[Annotator "NA RC"]
[ECO "D00"]
[WhiteElo "2050"]
[BlackElo "1589"]
[PlyCount "88"]
[EventDate "2024.11.18"]
[EventType "swiss"]
[EventCountry "ITA"]
[SourceTitle "playchess.com"]
[Source "ChessBase"]
[SourceQuality "1"]
[TimeControl "5400+30"]

1. d4 {[%emt 0:00:03]} d5 {[%emt 0:00:05]} 2. Bf4 {[%emt 0:00:16]} Nf6 {[%emt 0:00:07]} 3. e3 {[%emt 0:00:05]} c5 {[%emt 0:00:09]} 4. Nc3 {[%emt 0:02:23]} e6 {[%emt 1:32:09]} 5. Nb5 {[%emt 0:01:14]} Na6 {[%emt 0:00:00]} 6. c3 {[%emt 0:00:54]} Be7 {[%emt 0:00:00]} 7. Nf3 {[%emt 0:02:00]} O-O {[%emt 0:00:00]} 8. Bd3 {[%emt 0:02:09]} c4 {[%emt 0:00:00]} 9. Bc2 {[%emt 0:01:38]} Bd7 {[%emt 0:00:00]} 10. a4 {[%emt 0:02:07]} Qb6 {[%emt 0:00:00]} 11. Ne5 {[%emt 0:05:13]} Bxb5 {[%emt 0:00:00]} 12. axb5 {[%emt 0:00:48]} Qxb5 {[%emt 0:00:00]} 13. Qe2 {[%emt 0:01:19]} Qb6 {[%emt 0:00:00]} 14. Bg5 {[%emt 0:04:46]} Qd8 {[%emt 0:00:00]} 15. f4 {[%emt 0:03:09]} Nd7 {[%emt 0:00:00]} 16. h4 {[%emt 0:02:54]} f5 {[%emt 0:00:00]} 17. g4 {[%emt 0:02:30]} Nxe5 {[%emt 0:00:00]} 18. dxe5 {[%emt 0:01:53]} Nc5 {[%emt 0:00:00]} 19. O-O-O {[%emt 0:01:57]} Nb3+ {[%emt 0:00:00]} 20. Bxb3 {[%emt 0:04:47]} cxb3 {[%emt 0:00:00]} 21. gxf5 {[%emt 0:00:58]} Rxf5 {[%emt 0:00:00]} 22. e4 {[%emt 0:00:38]} Rf8 {[%emt 0:00:00]} 23. Qg4 {[%emt 0:00:37]} Bxg5 {[%emt 0:00:09]} 24. Qxe6+ {[%emt 0:00:25]} Rf7 {[%emt 0:00:06]} 25. hxg5 {[%emt 0:00:44]} Qa5 {[%emt 0:00:10]} 26. Kd2 {[%emt 0:01:34]} dxe4 {[%emt 0:05:43]} 27. Rxh7 {[%emt 0:02:57]} Rd8+ {[%emt 0:00:18]} 28. Ke2 {[%emt 0:00:25]} Rxd1 {[%emt 0:01:54]} 29. Qe8+ {[%emt 0:01:37]} Kxh7 {[%emt 0:00:21]} 30. Qxf7 {[%emt 0:53:30]} Rd8 {[%emt 0:01:53]} 31. Qh5+ {[%emt 0:00:00]} Kg8 {[%emt 0:00:08]} 32. e6 {[%emt 0:00:00]} Qa6+ {[%emt 0:00:05]} 33. Ke3 {[%emt 0:00:00]} Qd3+ {[%emt 0:00:37]} 34. Kf2 {[%emt 0:00:00]} Qd2+ {[%emt 0:00:15]} 35. Kf1 {[%emt 0:00:00]} Qc1+ {[%emt 0:00:21]} 36. Kg2 {[%emt 0:00:00]} Rd2+ {[%emt 0:00:14]} 37. Kh3 {[%emt 0:00:00]} Qh1+ {[%emt 0:00:13]} 38. Kg4 {[%emt 0:00:00]} Qf3+ {[%emt 0:00:07]} 39. Kf5 {[%emt 0:00:00]} Qxh5 {[%emt 0:00:08]} 40. e7 {[%emt 0:00:00]} Qf7+ {[%emt 0:00:58]} 41. Kxe4 {[%emt 0:00:00]} Qxe7+ {[%emt 0:00:18]} 42. Kf5 {[%emt 0:00:00]} Qd7+ {[%emt 0:00:06]} 43. Ke4 {[%emt 0:00:00]} Qd3+ {[%emt 0:00:10]} 44. Ke5 {[%emt 0:00:00]} Re2# {[%emt 0:00:09]} 0-1

[Event "FIDE WCCC Open-08 2024"]
[Site "Montesilvano"]
[Date "2024.11.25"]
[Round "10.14"]
[White "Batbileg, Boldbaatar"]
[Black "Zhang, Yangming"]
[Result "1/2-1/2"]
[Annotator "NA RC"]
[ECO "E04"]
[WhiteElo "1623"]
[BlackElo "1770"]
[PlyCount "87"]
[EventDate "2024.11.18"]
[EventType "swiss"]
[EventCountry "ITA"]
[SourceTitle "playchess.com"]
[Source "ChessBase"]
[SourceQuality "1"]
[TimeControl "5400+30"]

1. d4 {[%emt 0:00:06]} Nf6 {[%emt 0:01:28]} 2. c4 {[%emt 0:00:20]} e6 {[%emt 0:00:34]} 3. Nf3 {[%emt 0:00:23]} d5 {[%emt 0:01:18]} 4. g3 {[%emt 0:03:02]} dxc4 {[%emt 0:01:09]} 5. Bg2 {[%emt 0:00:08]} c5 {[%emt 0:00:42]} 6. e3 {[%emt 0:16:10]} Nc6 {[%emt 0:10:39]} 7. O-O {[%emt 0:02:39]} Be7 {[%emt 0:08:32]} 8. Qa4 {[%emt 0:02:38]} Bd7 {[%emt 0:01:13]} 9. Qxc4 {[%emt 0:00:23]} b5 {[%emt 0:02:35]} 10. Qe2 {[%emt 0:06:41]} c4 {[%emt 0:04:20]} 11. Ne5 {[%emt 0:01:58]} Rc8 {[%emt 0:02:30]} 12. Nxd7 {[%emt 0:09:02]} Qxd7 {[%emt 0:04:28]} 13. a4 {[%emt 0:05:40]} a6 {[%emt 0:08:15]} 14. axb5 {[%emt 0:02:36]} axb5 {[%emt 0:00:18]} 15. Nc3 {[%emt 0:02:40]} Nb4 {[%emt 0:03:59]} 16. Ra5 {[%emt 0:04:53]} Rb8 {[%emt 0:02:35]} 17. Bd2 {[%emt 0:06:31]} O-O {[%emt 0:06:37]} 18. Rfa1 {[%emt 0:02:18]} Nd3 {[%emt 0:05:06]} 19. Ra7 {[%emt 0:04:54]} Qd8 {[%emt 0:04:22]} 20. R1a5 {[%emt 0:14:37]} b4 {[%emt 0:03:35]} 21. Na4 {[%emt 0:02:12]} Nd5 {[%emt 0:07:03]} 22. b3 {[%emt 0:06:56]} Nc3 {[%emt 0:07:11]} 23. Nxc3 {[%emt 0:01:08]} bxc3 {[%emt 0:00:13]} 24. Bxc3 {[%emt 0:00:09]} Rxb3 {[%emt 0:00:12]} 25. Ba1 {[%emt 0:01:28]} Qb6 {[%emt 0:01:44]} 26. Ra2 {[%emt 0:01:17]} Nc1 {[%emt 0:01:17]} 27. Qxc4 {[%emt 0:00:31]} Nxa2 {[%emt 0:00:07]} 28. Rxa2 {[%emt 0:00:22]} Rb8 {[%emt 0:00:19]} 29. h3 {[%emt 0:00:21]} h6 {[%emt 0:00:44]} 30. d5 {[%emt 0:00:16]} exd5 {[%emt 0:01:05]} 31. Bxd5 {[%emt 0:00:11]} Qg6 {[%emt 0:00:14]} 32. Kg2 {[%emt 0:01:00]} R3b4 {[%emt 0:00:46]} 33. Qe2 {[%emt 0:01:53]} Bf6 {[%emt 0:01:29]} 34. Ra7 {[%emt 0:00:40]} Rf8 {[%emt 0:02:24]} 35. Ra6 {[%emt 0:00:33]} Qg5 {[%emt 0:01:04]} 36. e4 {[%emt 0:01:00]} Bxa1 {[%emt 0:00:32]} 37. Rxa1 {[%emt 0:00:10]} Qe7 {[%emt 0:00:53]} 38. Qd2 {[%emt 0:00:45]} Qc5 {[%emt 0:00:31]} 39. Rc1 {[%emt 0:00:22]} Qd4 {[%emt 0:01:05]} 40. Qf4 {[%emt 0:00:21]} Qf6 {[%emt 0:01:56]} 41. Qe3 {[%emt 0:00:23]} Qd4 {[%emt 0:00:58]} 42. Qf4 {[%emt 0:00:21]} Qf6 {[%emt 0:00:35]} 43. Qe3 {[%emt 0:00:25]} Qd4 {[%emt 0:00:11]} 44. Qf4 {[%emt 0:00:59]} 1/2-1/2